Cogmind - Beta 15 @@@ ROGUE MODE // 2025.10.14 @ 00:34:36 Player: shapeshifter Result: Self-destructed Performance ------------- Evolutions (5) 2500 Regions Visited (12) 2400 Robots Destroyed (85) 425 Value Destroyed (2681) 2681 Prototype IDs (34) 680 Alien Tech Used (0) 0 Bonus (1276) 1276 TOTAL SCORE: 9962 Bonus ------- Follower Combat Kills 176 Registered with UFD 300 Met Optimus in HQ 500 Met Data Miner 300 Cogmind --------- Core Integrity 178/1000 Matter 21/300 Energy 57/315 System Corruption 20% Temperature Cool (16) Movement Hovering (28) Location -5/Factory Parts ------- > --- POWER (1) -------- Neutrino Core > --- PROPULSION (4) --- Linear Gravjet Linear Gravjet Linear Gravjet Linear Gravjet > --- UTILITY (10) ----- Advanced Heat Sink Improved Signal Interpreter Layered Light Armor Plating Advanced System Shield Improved Corruption Screen Heart of Steel > --- WEAPON (2) ------- Coil Gun Scythe > --- INVENTORY (5) ---- Reinforced Fission Core Advanced Heat Sink Hypervelocity Coil Gun Improved Remote Datajack CPS Tube (2) Peak State ------------ > --- POWER ------------ Neutrino Core > --- PROPULSION ------- Linear Gravjet Linear Gravjet Linear Gravjet Linear Gravjet > --- UTILITY ---------- Improved Signal Interpreter Transmission Jammer Layered Light Armor Plating Advanced EM Disruption Field Advanced System Shield Improved Corruption Screen Heart of Steel > --- WEAPON ----------- Coil Gun Scythe > --- INVENTORY -------- Light Nuclear Core Hypervelocity Coil Gun Improved Remote Datajack CPS Tube [Rating: 93] Favorites ----------- Power Ion Engine Engine Ion Engine Power Core Micro Nuclear Core Reactor Light Antimatter Reactor Propulsion Overtuned Scrapsphere Treads Spiked Treads Wheel Overtuned Scrapsphere Hover Unit Linear Gravjet Flight Unit Field Propulsion Drive Utility High-capacity Storage Unit Device Scrap Suit Storage High-capacity Storage Unit Processor Core Analyzer Hackware Advanced System Shield Protection Scrap Shield Weapon Companion Sword Energy Gun Small Laser Ballistic Gun Barrage Gun Launcher Rocket Launcher Special Weapon CPS Tube Slashing Weapon Companion Sword Build | -11 -10 -10 -10 -9 -6 -6 -6 -6 -5 -5 -5 -5 ------- Run | Yrd Mat Min Sub Scr Fac Low Low Dat Pro Fac Was Fac Slots Evolved 10 | . . . . . 8 . . . . 2 . . Power . | . . . . . . . . . . . . . Propulsion 2 | . . . . . 2 . . . . . . . Utility 8 | . . . . . 6 . . . . 2 . . Weapon . | . . . . . . . . . . . . . Parts Attached 103 | 6 2 2 13 15 20 4 1 . 3 27 2 8 Power 10 | 1 . 1 1 2 1 1 . . 1 1 . 1 Engine 6 | 1 . 1 1 2 . 1 . . . . . . Core 3 | . . . . . 1 . . . . 1 . 1 Reactor 1 | . . . . . . . . . 1 . . . Propulsion 26 | 2 . . 5 5 1 . . . . 10 . 3 Treads 6 | 2 . . 3 1 . . . . . . . . Leg . | . . . . . . . . . . . . . Wheel 6 | . . . 2 4 . . . . . . . . Hover 7 | . . . . . . . . . . 4 . 3 Flight 7 | . . . . . 1 . . . . 6 . . Utility 45 | 1 1 . 2 5 16 2 1 . . 12 2 3 Device 14 | . 1 . 1 2 3 1 . . . 3 1 2 Storage 2 | 1 . . . 1 . . . . . . . . Processor 17 | . . . . 1 8 1 . . . 7 . . Hackware 3 | . . . . . 1 . . . . 1 1 . Protection 9 | . . . 1 1 4 . 1 . . 1 . 1 Artifact . | . . . . . . . . . . . . . Weapon 22 | 2 1 1 5 3 2 1 . . 2 4 . 1 Energy Gun 4 | . . 1 . . . . . . 1 2 . . Energy Cannon . | . . . . . . . . . . . . . Ballistic Gun 8 | 2 1 . 3 . . . . . . 2 . . Ballistic Cannon . | . . . . . . . . . . . . . Launcher 4 | . . . 2 . 1 . . . 1 . . . Special Weapon 4 | . . . . 2 1 1 . . . . . . Impact Weapon . | . . . . . . . . . . . . . Slashing Weapon 2 | . . . . 1 . . . . . . . 1 Piercing Weapon . | . . . . . . . . . . . . . Special Melee Weapon . | . . . . . . . . . . . . . Unidentified Prototypes 5 | . . . . 1 1 . 1 . . 1 . 1 Parts Lost 32 | . . 4 4 . 3 . . . 1 17 . 3 Power 5 | . . 1 1 . 1 . . . 1 1 . . Propulsion 9 | . . 1 2 . . . . . . 3 . 3 Utility 14 | . . . . . 2 . . . . 12 . . Weapon 4 | . . 2 1 . . . . . . 1 . . Highest Loss Streak 6 | . . 4 2 . 2 . . . 1 6 . 3 To Critical Strikes 1 | . . . . . . . . . . 1 . . Average Backups 9 | 4 6 7 3 13 15 16 15 15 14 8 5 4 Power . | . 1 1 . . . 1 1 1 . . . . Propulsion 2 | 1 2 2 1 2 2 3 3 3 3 2 3 1 Utility 3 | 1 2 3 1 7 5 6 5 4 4 2 . . Weapon 2 | . 1 . . 2 3 4 4 4 3 1 . . Tool/Special . | . . . . . . . . . . . . . Unused Backups 36 | . . . 4 17 6 . . . 1 4 . 4 Power 5 | . . . . 1 1 . . . 1 . . 2 Propulsion 8 | . . . 2 5 . . . . . 1 . . Utility 18 | . . . 2 8 5 . . . . 2 . 1 Weapon 4 | . . . . 2 . . . . . 1 . 1 Tool/Special 1 | . . . . 1 . . . . . . . . Average Slot Usage (%) 72 | . 100 79 77 64 78 80 77 73 72 47 62 67 Engine 5 | . 14 13 4 7 . 4 6 6 . . . . Treads 10 | . 28 14 22 8 . . . . . . . . Wheel 9 | . . . 4 11 19 20 20 20 20 6 . . Device 6 | . 14 14 3 1 7 12 13 13 13 7 11 11 Storage 7 | . 14 14 3 13 6 6 6 6 6 2 . . Processor 7 | . . . . 3 23 20 17 13 13 11 11 11 Protection 5 | . . . 10 . 5 6 5 6 5 1 . 4 Energy Gun 1 | . . 8 1 . . . . . . . . . Ballistic Gun 7 | . 28 14 17 . . . . . . 1 5 5 Launcher 2 | . . . 8 . . . . . . . . . Special Weapon 1 | . . . . 9 . . . . . . . . Slashing Weapon 3 | . . . . 7 6 6 6 6 6 2 . 1 Peak Build Rating 93 | 6 7 7 16 38 73 74 73 73 82 87 87 93 Average Rating 34 | 5 7 6 14 25 67 68 70 73 75 68 80 82 On Entrance 44 | . 6 7 7 14 38 66 69 73 73 76 74 80 Naked Turns . | . . . . . . . . . . . . . Heaviest Build 82 | 10 12 13 32 60 79 62 67 67 82 75 32 36 Greatest Support 43 | 40 40 40 40 43 36 36 36 36 36 36 27 36 Greatest Overweight (x) 18 | . . . 1 18 2 1 1 1 2 5 1 1 Average Overweight (x) . | . . . . 1 1 1 1 1 1 . . . Largest Inventory Capacity 20 | 8 8 8 8 20 20 20 20 20 20 20 5 5 Average Capacity 13 | 7 8 8 5 19 20 20 20 20 20 12 5 5 Most Carried 20 | 7 7 8 8 20 20 20 20 20 20 20 5 5 Average Carried 12 | 4 6 7 5 18 18 19 19 20 19 11 5 4 Final Capacity 20 | 8 8 8 5 20 20 20 20 20 20 5 5 5 Final Carried 20 | 7 7 8 5 20 20 20 20 20 20 5 5 5 Class Distribution -------------------- 64% | Mutant 27% | Scrapper 3% | Sprinter Dominant Class ---------------- Mutant | -10/Materials Mutant | -10/Mines Mutant | -10/Subcaves Mutant | -9/Scraptown Scrapper | -6/Factory Scrapper | -6/Lower Caves Scrapper | -6/Lower Caves Scrapper | -6/Data Miner Scrapper | -5/Proximity Caves Mutant | -5/Factory Sprinter | -5/Waste Sprinter | -5/Factory Resources | -11 -10 -10 -10 -9 -6 -6 -6 -6 -5 -5 -5 -5 ----------- Run | Yrd Mat Min Sub Scr Fac Low Low Dat Pro Fac Was Fac Matter Collected 2369 | 292 128 70 709 50 383 90 . . 163 405 . 79 Remotely . | . . . . . . . . . . . . . Salvage Created 3373 | 142 277 114 637 . 1013 203 . . 318 414 . 255 Parts 203 | 15 14 6 52 . 55 1 . . 17 20 . 23 Haulers Intercepted 2 | . . . . . 1 . . . . 1 . . Recyclers Shooed 2 | 1 . 1 . . . . . . . . . . Parts Field Recycled . | . . . . . . . . . . . . . Retrieved Matter . | . . . . . . . . . . . . . Parts Self-Destructed 28 | . . . 17 . . . . . 11 . . . Prevented . | . . . . . . . . . . . . . Kills | -11 -10 -10 -10 -9 -6 -6 -6 -6 -5 -5 -5 -5 ------- Run | Yrd Mat Min Sub Scr Fac Low Low Dat Pro Fac Was Fac Combat Hostiles Destroyed 65 | . 8 2 20 . 12 . . . 8 5 . 10 Melee 19 | . . . . . 12 . . . 3 4 . . Guns 39 | . 8 2 17 . . . . . 1 1 . 10 AOE 7 | . . . 3 . . . . . 4 . . . Classes Destroyed 15 | 3 3 . 2 . 5 1 . . 1 . . . Worker 8 | 1 . 1 . . 3 . . . . 3 . . Builder 2 | . . . . . 2 . . . . . . . Tunneler 3 | 3 . . . . . . . . . . . . Hauler 2 | . . . . . 1 . . . . 1 . . Recycler 2 | 1 . . . . 1 . . . . . . . Minesweeper 1 | . . . . . . . . . 1 . . . Watcher 2 | . 1 . . . 1 . . . . . . . Swarmer 25 | . 3 . 6 . 2 . . . 4 . . 10 Grunt 16 | . 5 2 . . 4 . . . 3 2 . . Brawler 1 | . . . . . 1 . . . . . . . Sentry 3 | . . . . . 2 . . . 1 . . . Programmer 6 | . . . . . 3 . . . . 3 . . Artisan 1 | . . . 1 . . . . . . . . . Subdweller 14 | . . . 14 . . . . . . . . . Samaritan 1 | . . . . . . 1 . . . . . . Best Kill Streak 10 | 4 3 3 3 . 3 . . . 4 2 . 10 Combat Bots Only 10 | . 3 3 3 . 3 . . . 4 1 . 10 Max Kills in Single Turn 2 | 1 1 1 1 . 2 1 . . 2 1 . 2 Gunslinging . | . . . . . . . . . . . . . Exploded 2 | . . . 1 . . . . . 2 . . . Melee 2 | . . . . . 2 . . . 1 1 . . Uniques/NPCs Destroyed . | . . . . . . . . . . . . . Combat | -11 -10 -10 -10 -9 -6 -6 -6 -6 -5 -5 -5 -5 -------- Run | Yrd Mat Min Sub Scr Fac Low Low Dat Pro Fac Was Fac Hostile Shots Fired 806 | . 42 28 108 . 205 . . . 80 280 . 63 Missed 242 | . 15 4 32 . 61 . . . 25 88 . 17 Hits 564 | . 27 24 76 . 144 . . . 55 192 . 46 Melee 19 | . . . . . 5 . . . . 13 . 1 Projectile 545 | . 27 24 76 . 139 . . . 55 179 . 45 AOE 2 | . . . . . 1 . . . . 1 . . Critical Strikes 25 | . . 1 . . 7 . . . 5 12 . . Actively Blocked 1 | . . . . . . . . . . 1 . . Part Disruptions 1 | . . . . . . . . . . 1 . . Damage Taken 9038 | . 313 290 1324 . 1541 . . . 874 3856 . 840 Core 1344 | . 33 40 141 . 181 . . . 127 776 . 46 Absorbed by Shields . | . . . . . . . . . . . . . Redirected to Shielding 153 | . . . . . . . . . . 153 . . Ignored by Resistances 72 | . . . . . 72 . . . . . . . Regen/Repaired (Parts) 2 | . . . . . . 2 . . . . . . Core Remaining (%) 59 | 100 . . . 14 . . . . 63 . . . Volleys Fired 263 | 16 33 19 108 . 3 . . . 6 57 . 21 Largest 2 | 2 2 2 2 . 1 . . . 1 2 . 1 Hottest 120 | 40 40 60 61 . 36 . . . 100 120 . 30 Shots Fired 365 | 32 66 28 150 . 3 . . . 7 57 . 22 Gun 344 | 32 66 28 138 . . . . . 4 54 . 22 Cannon . | . . . . . . . . . . . . . Launcher 18 | . . . 12 . 1 . . . 3 2 . . Special 3 | . . . . . 2 . . . . 1 . . Kinetic 325 | 32 66 24 130 . . . . . . 51 . 22 Thermal 19 | . . 4 9 . . . . . 4 2 . . Explosive 16 | . . . 11 . . . . . 3 2 . . Electromagnetic 2 | . . . . . 1 . . . . 1 . . Robot Hit Streak 11 | 4 9 8 11 . 2 . . . 3 6 . 5 Robot Miss Streak 6 | 2 3 2 6 . . . . . 1 3 . 6 Penetration Max 2 | . . . . . . . . . . 1 . 2 Secondary Targets 3 | . . 1 2 . . . . . . . . . Max Gunslinging Chain 1 | . . 1 1 . . . . . . . . . Shots Hit Robots 273 | 20 42 21 59 . 51 5 . . 16 47 . 12 Core Hits 130 | 10 17 6 33 . 23 3 . . 12 16 . 10 Critical Kills 1 | . . . . . . . . . . . . 1 Critical Parts Destroyed 1 | . 1 . . . . . . . . . . . Critical Strikes 6 | . 1 . . . 2 . . . . 2 . 1 Destroy 2 | . 1 . . . . . . . . . . 1 Melee Attacks 162 | . . . . . 95 5 . . 17 45 . . Impact . | . . . . . . . . . . . . . Slashing 162 | . . . . . 95 5 . . 17 45 . . Piercing . | . . . . . . . . . . . . . Sneak Attacks 13 | . . . . . 8 1 . . 1 3 . . Combat Hostiles . | . . . . . . . . . . . . . Follow-up Attacks 1 | . . . . . 1 . . . . . . . Damage Inflicted 8305 | 161 444 210 1408 . 2382 408 . . 1045 1846 . 401 Guns 2695 | 161 444 210 959 . . . . . 93 427 . 401 Cannons . | . . . . . . . . . . . . . Explosions 1051 | . . . 449 . . . . . 432 170 . . Melee 4525 | . . . . . 2382 408 . . 520 1215 . . Ramming 34 | . . . . . . . . . . 34 . . Kinetic 2549 | 161 444 179 1014 . . . . . . 350 . 401 Thermal 217 | . . 31 54 . . . . . 93 39 . . Explosive 942 | . . . 340 . . . . . 432 170 . . Electromagnetic 38 | . . . . . . . . . . 38 . . Impact . | . . . . . . . . . . . . . Slashing 4525 | . . . . . 2382 408 . . 520 1215 . . Piercing . | . . . . . . . . . . . . . Highest Corruption 20 | . . . . . 7 7 7 7 7 20 20 20 Average Corruption 7 | . . . . . 3 7 7 7 7 11 20 20 Corruption Purged . | . . . . . . . . . . . . . Corruption Blocked 4 | . . . . . . . . . . 4 . . Effects 134 | . . . . . 30 20 9 1 28 33 2 11 Message Errors 35 | . . . . . 14 5 2 . 7 5 2 . Matter Fused 22 | . . . . . 3 7 3 . 3 5 . 1 Heat Flow Errors 13 | . . . . . 5 1 . . 3 2 . 2 Energy Discharges 18 | . . . . . 4 3 2 . 3 5 . 1 Parts Rejected 3 | . . . . . . . . . . 3 . . Parts Fused 3 | . . . . . . . . . . 3 . . Data Loss (minor) 19 | . . . . . 2 3 2 . 7 3 . 2 Data Loss (major) 7 | . . . . . 1 1 . 1 3 1 . . Misfires 2 | . . . . . . . . . 1 . . 1 Alerts 7 | . . . . . 1 . . . 1 3 . 2 Misdirections 3 | . . . . . . . . . . 1 . 2 Weapon Failures 2 | . . . . . . . . . . 2 . . Overload Shots . | . . . . . . . . . . . . . Overflow Damage 394 | . . . . . 183 97 . . 91 23 . . Projectiles . | . . . . . . . . . . . . . Explosions 82 | . . . . . . . . . 82 . . . Melee 312 | . . . . . 183 97 . . 9 23 . . Knockbacks 2 | . . . . . . . . . . 2 . . Impact 1 | . . . . . . . . . . 1 . . Kinetic . | . . . . . . . . . . . . . Secondary 1 | . . . . . . . . . . 1 . . Self-Inflicted Damage 223 | . . . 40 . . . . . . 183 . . Shots 4 | . . . 2 . . . . . . 2 . . Rammed 3 | . . . . . . . . . . 3 . . Targets Rammed 3 | . . . . . . . . . . 3 . . Kicked . | . . . . . . . . . . . . . Crushed . | . . . . . . . . . . . . . Highest Temperature 333 | . 12 20 1 . 220 189 . . 241 281 . 333 Average Temperature 90 | . 7 8 1 . 86 105 . . 93 74 . 119 Received Heat Transfer 2234 | . 141 168 165 . 411 . . . 295 1036 . 18 Siege Activations . | . . . . . . . . . . . . . Martial Activations . | . . . . . . . . . . . . . Shielding Activations . | . . . . . . . . . . . . . Robots Disrupted 1 | . . . . . 1 . . . . . . . Combat Hostiles 1 | . . . . . 1 . . . . . . . Robots Corrupted . | . . . . . . . . . . . . . Combat Hostiles . | . . . . . . . . . . . . . Parts Fried . | . . . . . . . . . . . . . Impact Corruptions . | . . . . . . . . . . . . . Robots Melted . | . . . . . . . . . . . . . Combat Hostiles . | . . . . . . . . . . . . . Parts Melted 1 | . . . 1 . . . . . . . . . Heat Transferred 400 | . . 75 125 . . . . . 150 50 . . Parts Sabotaged . | . . . . . . . . . . . . . Parts Stolen . | . . . . . . . . . . . . . Parts Stripped . | . . . . . . . . . . . . . Power Chain Reactions . | . . . . . . . . . . . . . Alert | -11 -10 -10 -10 -9 -6 -6 -6 -6 -5 -5 -5 -5 ------- Run | Yrd Mat Min Sub Scr Fac Low Low Dat Pro Fac Was Fac Maximum Alert Level 1 | . . . . . . . . . . 1 . 1 Low Security (%) 95 | 100 100 100 . . 100 . . . . 90 100 33 Level 1 4 | . . . . . . . . . . 9 . 66 Level 2 . | . . . . . . . . . . . . . Level 3 . | . . . . . . . . . . . . . Level 4 . | . . . . . . . . . . . . . Level 5 . | . . . . . . . . . . . . . High Security . | . . . . . . . . . . . . . Max Security . | . . . . . . . . . . . . . Peak Influence 368 | 15 169 85 . . 107 . . . . 237 80 368 Initial 80 | . 3 62 . . . . . . . . 80 35 Average 46 | 2 53 8 . . 41 . . . . 69 73 218 Influence Increases 2653 | 25 287 188 197 . 502 5 . . 245 736 . 468 Destroy 0b10 Robot/C 1200 | . 160 140 140 . 240 . . . 160 100 . 260 Destroy 0b10 Robot/NC 105 | 25 5 5 . . 40 5 . . 5 20 . . Destroy Leader 218 | . 42 30 10 . 64 . . . 20 22 . 30 Allied During Kill 29 | . . 13 2 . . . . . . . . 14 Successful Hack 85 | . 20 . . . 56 . . . . 9 . . Select Force Hacks 60 | . 60 . . . . . . . . . . . Disable Machine 165 | . . . . . 30 . . . . 90 . 45 Destroy Structure 131 | . . . . . 27 . . . . 90 . 14 Partial Spotted 30 | . . . . . . . . . . 15 . 15 Lose Combat Pursuer 630 | . . . 45 . 45 . . . 60 390 . 90 Influence Decreases 2290 | 20 131 268 214 64 455 52 . . 245 507 179 155 Entered New Map 391 | . 2 99 43 64 . 19 . . . . 149 15 Time Decay 1554 | 20 129 109 141 . 425 33 . . 235 362 10 90 Lost Part 245 | . . 40 10 . 10 . . . 10 145 . 30 Lost Ally 100 | . . 20 20 . 20 . . . . . 20 20 Squads Dispatched 21 | . 3 . . . 12 . . . . 3 . 3 Investigation 9 | . 2 . . . 6 . . . . . . 1 Extermination 7 | . . . . . 5 . . . . 2 . . Reinforcement 5 | . 1 . . . 1 . . . . 1 . 2 Assault . | . . . . . . . . . . . . . Garrison . | . . . . . . . . . . . . . Intercept . | . . . . . . . . . . . . . Searches Triggered . | . . . . . . . . . . . . . Data Miner Redirects 1 | . . . . . . . . . . . . 1 Construction Impeded 1 | . . . . . 1 . . . . . . . Haulers Reinforced . | . . . . . . . . . . . . . Active Scanning Responses . | . . . . . . . . . . . . . Cargo Convoy Interrupts . | . . . . . . . . . . . . . Stealth | -11 -10 -10 -10 -9 -6 -6 -6 -6 -5 -5 -5 -5 --------- Run | Yrd Mat Min Sub Scr Fac Low Low Dat Pro Fac Was Fac Distress Signals 7 | . . . . . 1 . . . . 4 . 2 Communications Jammed . | . . . . . . . . . . . . . Distress Signals . | . . . . . . . . . . . . . Times Spotted 164 | . 12 7 21 . 22 . . . 13 45 6 38 Peak Tracking Total 14 | . 3 3 4 . 5 . . . 4 11 6 14 Tactical Retreats 22 | . . . 2 . 2 . . . 3 12 . 3 Traps | -11 -10 -10 -10 -9 -6 -6 -6 -6 -5 -5 -5 -5 ------- Run | Yrd Mat Min Sub Scr Fac Low Low Dat Pro Fac Was Fac Traps Triggered 9 | . . . 2 . 3 . . . . 3 . 1 Indirectly 1 | . . . . . 1 . . . . . . . Trap Hack Attempts . | . . . . . . . . . . . . . Triggered . | . . . . . . . . . . . . . Disarmed . | . . . . . . . . . . . . . Reprogrammed . | . . . . . . . . . . . . . Reused . | . . . . . . . . . . . . . Traps Extracted . | . . . . . . . . . . . . . Installed . | . . . . . . . . . . . . . Triggered . | . . . . . . . . . . . . . Machines | -11 -10 -10 -10 -9 -6 -6 -6 -6 -5 -5 -5 -5 ---------- Run | Yrd Mat Min Sub Scr Fac Low Low Dat Pro Fac Was Fac Machines Disabled 13 | . 1 . 1 . 2 . . . . 6 . 3 Max in Single Turn 5 | . 1 . 1 . 1 . . . . 5 . . Machines Repaired . | . . . . . . . . . . . . . Machines Dismantled . | . . . . . . . . . . . . . Machines Sabotaged . | . . . . . . . . . . . . . Overloaded Fab Kills . | . . . . . . . . . . . . . Hacking | -11 -10 -10 -10 -9 -6 -6 -6 -6 -5 -5 -5 -5 --------- Run | Yrd Mat Min Sub Scr Fac Low Low Dat Pro Fac Was Fac Machines Accessed 39 | . 4 . 2 4 17 3 1 3 . 3 . 2 Terminals 15 | . 2 . . . 11 . . . . 1 . 1 Fabricators 2 | . . . . . 1 . . . . 1 . . Repair Stations 1 | . . . . . . . . . . 1 . . Recycling Units 8 | . 2 . . . 5 . . . . . . 1 Scanalyzers . | . . . . . . . . . . . . . Garrison Access . | . . . . . . . . . . . . . Total Hacks 119 | . 14 . 5 10 46 5 1 24 . 10 . 4 Successful 74 | . 10 . 5 10 15 5 1 24 . 3 . 1 Failed 45 | . 4 . . . 31 . . . . 7 . 3 Catastrophic 13 | . . . . . 8 . . . . 3 . 2 Database Lockouts . | . . . . . . . . . . . . . Manual 39 | . 12 . . . 17 . . . . 6 . 4 Terminals 48 | . 9 . . . 30 . . . . 7 . 2 Fabricators 4 | . . . . . 2 . . . . 2 . . Repair Stations 1 | . . . . . . . . . . 1 . . Recycling Units 21 | . 5 . . . 14 . . . . . . 2 Scanalyzers . | . . . . . . . . . . . . . Garrison Access . | . . . . . . . . . . . . . Terminal Hacks 52 | . 2 . 5 10 5 5 1 24 . . . . Record 16 | . . . 4 3 . 3 . 6 . . . . Part Schematic 10 | . . . . . . . . 10 . . . . Robot Schematic 5 | . . . . . . . . 5 . . . . Robot Analysis 5 | . . . . 5 . . . . . . . . Prototype ID Bank 4 | . . . . . 1 . . 3 . . . . Open Door 4 | . . . . 1 . 2 1 . . . . . Branch Access Points 2 | . 1 . . . 1 . . . . . . . Locate Traps 1 | . . . . . 1 . . . . . . . Hauler Manifests 1 | . . . . . 1 . . . . . . . Zone Layout 2 | . 1 . . . 1 . . . . . . . Proto ID Catalog 2 | . . . 1 1 . . . . . . . . Fabricator Hacks 2 | . . . . . 2 . . . . . . . Network Status 1 | . . . . . 1 . . . . . . . Build 1 | . . . . . 1 . . . . . . . Repair Station Hacks . | . . . . . . . . . . . . . Recycling Unit Hacks 3 | . 2 . . . 1 . . . . . . . Retrieve Components 3 | . 2 . . . 1 . . . . . . . Scanalyzer . | . . . . . . . . . . . . . Garrison Access Hacks . | . . . . . . . . . . . . . Unauthorized Hacks 17 | . 6 . . . 7 . . . . 3 . 1 Terminals 12 | . 4 . . . 5 . . . . 3 . . Assimilate 1 | . . . . . . . . . . 1 . . Botnet 3 | . 2 . . . . . . . . 1 . . Skim 8 | . 2 . . . 5 . . . . 1 . . Fabricators . | . . . . . . . . . . . . . Repair Stations . | . . . . . . . . . . . . . Recycling Units 5 | . 2 . . . 2 . . . . . . 1 Tunnel 2 | . 2 . . . . . . . . . . . Fedlink 2 | . . . . . 2 . . . . . . . Scrapoids 1 | . . . . . . . . . . . . 1 Scanalyzers . | . . . . . . . . . . . . . Garrison Access . | . . . . . . . . . . . . . Data Cores Recovered . | . . . . . . . . . . . . . Used . | . . . . . . . . . . . . . Hacking Detections 21 | . 2 . . . 15 . . . . 3 . 1 Full Trace Events 3 | . . . . . 3 . . . . . . . Feedback Events 1 | . . . . . 1 . . . . . . . Corruption 1 | . . . . . 1 . . . . . . . Feedback Blocked . | . . . . . . . . . . . . . Robot Schematics Acquired 5 | . . . . . . . . 5 . . . . Robots Built . | . . . . . . . . . . . . . Authchips . | . . . . . . . . . . . . . Time . | . . . . . . . . . . . . . Total Robot Build Rating . | . . . . . . . . . . . . . Part Schematics Acquired 10 | . . . . . . . . 10 . . . . Parts Built . | . . . . . . . . . . . . . Authchips . | . . . . . . . . . . . . . Time 117 | . . . . . 117 . . . . . . . Total Part Build Rating . | . . . . . . . . . . . . . Parts Repaired . | . . . . . . . . . . . . . Time . | . . . . . . . . . . . . . Parts Recycled . | . . . . . . . . . . . . . Recycled Matter . | . . . . . . . . . . . . . Retrieved Matter . | . . . . . . . . . . . . . Retrieved Components 4 | . 3 . . . 1 . . . . . . . Parts Scanalyzed . | . . . . . . . . . . . . . Part Schematics Acquired . | . . . . . . . . . . . . . Parts Damaged . | . . . . . . . . . . . . . Bothacking | -11 -10 -10 -10 -9 -6 -6 -6 -6 -5 -5 -5 -5 ------------ Run | Yrd Mat Min Sub Scr Fac Low Low Dat Pro Fac Was Fac Used RIF Installer . | . . . . . . . . . . . . . Robots Hacked 2 | . . . . . 1 . . . . 1 . . Non-combat 2 | . . . . . 1 . . . . 1 . . Combat . | . . . . . . . . . . . . . Robot Hacks Applied 2 | . . . . . 1 . . . . 1 . . find_chute 2 | . . . . . 1 . . . . 1 . . Relay Couplers Released . | . . . . . . . . . . . . . Fabnet Peak Effective % . | . . . . . . . . . . . . . Robots Rewired . | . . . . . . . . . . . . . Allies Hacked . | . . . . . . . . . . . . . Hacks Repelled . | . . . . . . . . . . . . . Allies | -11 -10 -10 -10 -9 -6 -6 -6 -6 -5 -5 -5 -5 -------- Run | Yrd Mat Min Sub Scr Fac Low Low Dat Pro Fac Was Fac Total Allies 10 | . . 3 . . . . . . . 1 1 5 Largest Group 3 | . . 3 1 . . . . . . . 1 2 Highest-Rated Group 94 | . . 40 16 . . . . . . . 31 94 Highest-Rated Ally 47 | . . 16 16 . . . . . . . 31 47 Total Orders 1 | . . . . . 1 . . . . . . . EXPLORE 1 | . . . . . 1 . . . . . . . Ally Attacks 55 | . . 18 5 . . . . . . . 16 16 Total Damage 1289 | . . 197 43 . . . . . . . 298 751 Kills 14 | . . 6 1 . . . . . . . . 7 Allies Corrupted . | . . . . . . . . . . . . . Allies Melted . | . . . . . . . . . . . . . Intel | -11 -10 -10 -10 -9 -6 -6 -6 -6 -5 -5 -5 -5 ------- Run | Yrd Mat Min Sub Scr Fac Low Low Dat Pro Fac Was Fac Active Infowar (turns) 6348 | . 420 1225 919 244 1342 523 271 73 808 523 . . Optics 1216 | . . . . . 1216 . . . . . . . Sensors 1821 | . . . . . . 519 271 73 808 150 . . Terrain 478 | . . . . 244 234 . . . . . . . Seismic 2564 | . 420 1225 919 . . . . . . . . . Decoding 501 | . . . . . . . . . . 501 . . T.N.C. 169 | . . . . . 120 4 . . . 45 . . Jamming 2 | . . . . . . . . . . 2 . . Robot Analysis Total 5 | . . . . 5 . . . . . . . . Derelict Logs Recovered 8 | . . 2 3 . . . 1 . 2 . . . Drone Launches 2 | . . . . . 2 . . . . . . . Drone Recoveries . | . . . . . . . . . . . . . Decoded 0b10 Intel 31 | . . . . . . . . . . 31 . . Items 31 | . . . . . . . . . . 31 . . Exploration | -11 -10 -10 -10 -9 -6 -6 -6 -6 -5 -5 -5 -5 ------------- Run | Yrd Mat Min Sub Scr Fac Low Low Dat Pro Fac Was Fac Turns Passed 12978 | 177 420 1225 4024 2577 1637 523 271 73 808 1014 36 193 Spaces Moved 10013 | 89 196 684 2422 1810 1545 629 317 92 707 1047 99 376 Core 26 | 22 . . . 4 . . . . . . . . Treads 3092 | 67 196 684 1709 436 . . . . . . . . Legs . | . . . . . . . . . . . . . Wheels 5662 | . . . 713 1370 1545 629 317 92 707 289 . . Hover 569 | . . . . . . . . . . 94 99 376 Flight 664 | . . . . . . . . . . 664 . . Fastest Speed 23 | 50 160 160 120 90 80 80 80 80 80 23 32 28 Average Speed 109 | 132 160 160 153 125 83 80 80 80 88 52 32 29 Slowest Speed 950 | 160 160 160 260 950 90 80 80 80 90 120 112 112 Overloaded Moves 11 | . . . . . . . . . . 11 . . Propulsion Burnouts . | . . . . . . . . . . . . . Robots Hopped 8 | . . . . . . . . . . 8 . . Potential Cave-ins . | . . . . . . . . . . . . . Cave-ins Triggered . | . . . . . . . . . . . . . Exploration Rate (%) 60 | 7 42 97 97 87 52 70 55 71 85 31 78 12 Regions Visited 12 Branch Regions 7 Pre-discovered Areas 10 | . 2 2 . . 3 . . 1 2 . . . Known Exits Taken 6 | . 1 . . . 1 1 1 1 1 . . . Unknown Exits Taken 4 | 1 . 1 1 1 . . . . . . . . Scrap Searched 24 | . . 1 14 6 . 1 . . 2 . . . Spaces Dug 36 | . . . 3 . 27 . . . . 6 . . Terrain Destroyed 217 | . . . 102 . 27 . . . 39 48 . 1 Melee 33 | . . . . . 27 . . . . 6 . . Projectile 3 | . . . . . . . . . 1 1 . 1 AOE 181 | . . . 102 . . . . . 38 41 . . Terrain Rammed . | . . . . . . . . . . . . . Walls Destroyed . | . . . . . . . . . . . . . Machines Disabled . | . . . . . . . . . . . . . Actions | -11 -10 -10 -10 -9 -6 -6 -6 -6 -5 -5 -5 -5 --------- Run | Yrd Mat Min Sub Scr Fac Low Low Dat Pro Fac Was Fac Total 11498 | 121 243 790 2596 2125 1764 643 335 91 861 1389 101 439 Wait 708 | . 12 81 22 224 46 . 12 . 119 168 . 24 Move 9986 | 88 195 683 2421 1809 1544 628 316 91 706 1031 98 376 Hop 8 | . . . . . . . . . . 8 . . Pick Up 113 | 11 1 4 3 42 28 1 1 . 1 15 . 6 Fast Attach 34 | 2 . . 7 3 1 1 . . 4 12 2 2 Attach 70 | 4 1 3 . 11 19 2 1 . 2 22 . 5 Detach 15 | . . . . 3 4 1 . . 2 5 . . Swap 26 | . 1 . 9 3 6 1 . . . 5 . 1 Drop 98 | . . . 15 30 19 4 3 . 4 18 1 4 Fire 263 | 16 33 19 108 . 3 . . . 6 57 . 21 Melee 161 | . . . . . 94 5 . . 17 45 . . Ram 3 | . . . . . . . . . . 3 . . Kick . | . . . . . . . . . . . . . Crush . | . . . . . . . . . . . . . Escape Stasis . | . . . . . . . . . . . . . Rewire 2 | . . . . . . . 2 . . . . . Trap . | . . . . . . . . . . . . . Miscellaneous 11 | . . . 11 . . . . . . . . . Route ------- -11/Scrapyard -10/Materials (discovered 2 exits: [*Mat] / *Min) -10/Mines (discovered 3 exits: [*Mat x2] / *Sub) -10/Subcaves (discovered 4 exits: [*Mat x2] / Rec / *Scr) -9/Scraptown (discovered 2 exits: *Fac x2) -6/Factory (discovered 6 exits: *Fac x2 / *Low x2 / *Ext x2) -6/Lower Caves -6/Lower Caves (discovered 2 exits: Fac / *Dat) -6/Data Miner -5/Proximity Caves -5/Factory -5/Waste -5/Factory History --------- Turn | Location | Event 7 | -11/Scrapyard | Discovered new exit (range 16) 178 | -11/Scrapyard | Entered Materials 279 | -10/Materials | Identified exit to Mines 310 | -10/Materials | Build established: Mutant 327 | -10/Materials | Discovered new exit (range 16) 598 | -10/Materials | Entered Mines 602 | -10/Mines | Met a Derelict bent on vengeance 649 | -10/Mines | Learned Materials stockpile data 659 | -10/Mines | Lost 4 parts (1p1n2w) 866 | -10/Mines | Learned location of Zion (-7) 1013 | -10/Mines | Learned location of Storage (-9) 1130 | -10/Mines | Received a Rocket Launcher from a helpful Derelict 1319 | -10/Mines | Discovered new exit (range 4) 1499 | -10/Mines | Assisted by bots powering up and referring to "LRC-V3" 1762 | -10/Mines | Discovered new exit (range 10) 1791 | -10/Mines | Discovered new exit (range 9) 1823 | -10/Mines | Entered Subcaves 1823 | -10/Subcaves | Accompanied by 1 ally 1824 | -10/Subcaves | Approached by a straggling Scientist 1854 | -10/Subcaves | Learned Materials terminal intel 1868 | -10/Subcaves | Learned Materials non-interactive machine intel 2180 | -10/Subcaves | Shifting Twisted Machinery released Flamer 2329 | -10/Subcaves | Shifting Twisted Machinery released Sub. Monowheel 2331 | -10/Subcaves | Shifting Twisted Machinery released Battle Rifle 2456 | -10/Subcaves | Core integrity fell below 50% 2677 | -10/Subcaves | Scientist uncovered a shortcut to Scraptown 2704 | -10/Subcaves | Ambushed by Subdwellers from Twisted Machinery 3338 | -10/Subcaves | Visited 4L-MR0's lab 3356 | -10/Subcaves | Found Flightbrick 3683 | -10/Subcaves | Discovered new exit (range 9) 3935 | -10/Subcaves | Ambushed by Subdwellers from Twisted Machinery 3941 | -10/Subcaves | Core integrity fell below 20% 4216 | -10/Subcaves | Discovered new exit (range 8) 5044 | -10/Subcaves | Visited Clippyterm 5049 | -10/Subcaves | Identified exit to Recycling 5049 | -10/Subcaves | Learned Factory fabricator intel 5847 | -10/Subcaves | Entered Scraptown 6105 | -9/Scraptown | Visited The Evicted 6117 | -9/Scraptown | Visited Shadow of the Wyrm 6348 | -9/Scraptown | Received an X-ray algorithm 6407 | -9/Scraptown | Visited Awakened 6455 | -9/Scraptown | Visited SPCMW 6484 | -9/Scraptown | Visited UFD Registry 6484 | -9/Scraptown | Registered with UFD as "Toolpod" 6542 | -9/Scraptown | Visited Bundlers 6655 | -9/Scraptown | Discovered new exit (range 11) 6839 | -9/Scraptown | Visited Research Penetration Think Tank 6867 | -9/Scraptown | Visited Junk Repository 6927 | -9/Scraptown | Delivered Scrap Shield to a Scientist 6980 | -9/Scraptown | Visited Sword Containment 7019 | -9/Scraptown | Visited Analyses Database 7043 | -9/Scraptown | Visited Abandonware Association 7058 | -9/Scraptown | Learned abandonware demo "MELTYB.EXE" 7078 | -9/Scraptown | Visited Junk Repository 7138 | -9/Scraptown | Visited Science Guys 7177 | -9/Scraptown | Visited Modified Component R&D 7424 | -9/Scraptown | Found Scrap Suit 7428 | -9/Scraptown | Found Scrap Suit 8362 | -9/Scraptown | Met Optimus 8362 | -9/Scraptown | Accepted into 0bPrime 8417 | -9/Scraptown | Discovered new exit (range 3) 8424 | -9/Scraptown | Entered Factory 8424 | -6/Factory | Evolved 8 slots: Propulsion x2, Utility x6 8425 | -6/Factory | Loaded intel: 6 fabricator locations 8602 | -6/Factory | Loaded intel: 8 recycling unit locations 8677 | -6/Factory | Learned location of Protoforge (-2) 8723 | -6/Factory | Build established: Scrapper 9172 | -6/Factory | Spotted B-75 Beast 9424 | -6/Factory | Discovered new exit (range 5) 9552 | -6/Factory | Identified exit to Lower Caves 9608 | -6/Factory | Learned Extension trap positions 9620 | -6/Factory | Discovered new exit (range 11) 9653 | -6/Factory | Learned Extension stockpile data 9655 | -6/Factory | Identified exit to Extension 9690 | -6/Factory | Learned location of 1 exit from Lower Caves 9719 | -6/Factory | Learned location of 1 exit from Cetus 9750 | -6/Factory | Learned Extension stockpile data 9800 | -6/Factory | Loaded intel: 80 trap records 9834 | -6/Factory | Discovered new exit (range 8) 9839 | -6/Factory | Learned location of Proximity Caves (-6) 9886 | -6/Factory | Learned location of 2 exits from Archives 10061 | -6/Factory | Entered Lower Caves 10062 | -6/Lower Caves | Identified exit to Lower Caves 10063 | -6/Lower Caves | UFD Scientist delivered a prototype 10068 | -6/Lower Caves | Found Prototype Protection 10203 | -6/Lower Caves | Entered an active Warlord outpost 10208 | -6/Lower Caves | Learned location of 1 exit from Factory 10208 | -6/Lower Caves | Learned Research garrison access intel 10584 | -6/Lower Caves | Entered another Lower Caves area 10585 | -6/Lower Caves | Identified exit to Factory 10629 | -6/Lower Caves | Learned 4 Factory zone layouts 10750 | -6/Lower Caves | Identified Enh. Scrap Shield 10755 | -6/Lower Caves | Found Prototype Device 10836 | -6/Lower Caves | Discovered new exit (range 9) 10841 | -6/Lower Caves | Identified exit to Data Miner 10855 | -6/Lower Caves | Entered Data Miner 10855 | -6/Data Miner | Discovered new exit (range 6) 10871 | -6/Data Miner | Met Data Miner 10888 | -6/Data Miner | Learned location of Section 7 (-2) 10888 | -6/Data Miner | Acquired the access code to Warlord's prototype stash 10899 | -6/Data Miner | Received God Mode back door access code from Data Miner 10928 | -6/Data Miner | Identified exit to Proximity Caves 10928 | -6/Data Miner | Entered Proximity Caves 10928 | -5/Proximity Caves | Spotted B-75 Beast 11545 | -5/Proximity Caves | Attracted the attention of an 0b10 checkpoint 11672 | -5/Proximity Caves | Discovered exit to Factory (range 8) 11736 | -5/Proximity Caves | Entered Factory 11736 | -5/Factory | Evolved 2 slots: Utility x2 11737 | -5/Factory | Identified exit to Factory 11900 | -5/Factory | Lost 3 parts (1p2u) 12106 | -5/Factory | Attached Flightbrick, gained temporary slots: Utility x3 12128 | -5/Factory | Lost 5 parts (2n3u) 12184 | -5/Factory | Core integrity fell below 50% 12218 | -5/Factory | Identified Heart of Steel 12255 | -5/Factory | System corruption reached 10% 12288 | -5/Factory | Lost 6 parts (5u1w) 12336 | -5/Factory | Build established: Mutant 12749 | -5/Factory | Build established: Sprinter 12750 | -5/Factory | Manually triggered Chute Trap 12750 | -5/Factory | Sucked down chute 12750 | -5/Factory | Entered Waste 12751 | -5/Waste | Met a frightened Derelict 12754 | -5/Waste | Spotted C-40 Crusher 12769 | -5/Waste | Spotted C-40 Crusher 12769 | -5/Waste | Spotted C-40 Crusher 12771 | -5/Waste | Spotted C-40 Crusher 12778 | -5/Waste | Spotted C-40 Crusher 12781 | -5/Waste | Spotted C-40 Crusher 12781 | -5/Waste | Discovered new exit (range 16) 12786 | -5/Waste | Identified exit to Factory 12786 | -5/Waste | Entered Factory 12852 | -5/Factory | Core integrity fell below 20% 12880 | -5/Factory | Destroyed 10 combat bots 12890 | -5/Factory | Lost 3 parts (3n) 12904 | -5/Factory | Scrapoids reinforcements arrived? 12910 | -5/Factory | Incoming investigation squad redirected 12935 | -5/Factory | Lost 3 allies 12979 | -5/Factory | Self-destructed Last Messages --------------- reinforcements to area. 12970_ ALERT: Security rotation in progress. 12972_ Triggered Tesla Bomb Trap. 12972_ A bubble of electromagnetic force engulfs the area. 12972_ Repair Station disabled. 12972_ Backup Power III tumbles out of repair station. 12972_ Backup Plating III tumbles out of repair station. 12972_ Tesla Bomb Trap short circuited. 12972_ Subcomponent Replicator disabled. 12972_ Backup Plating III tumbles out of repair station. 12972_ Backup Laser III tumbles out of repair station. 12972_ Backup Propulsion III tumbles out of repair station. 12972_ Backup Power III tumbles out of repair station. 12972_ Backup Propulsion III tumbles out of repair station. 12972_ A bubble of electromagnetic force engulfs the area. 12972_ Tesla Bomb Trap short circuited. 12972_ A bubble of electromagnetic force engulfs the area. 12972_ Chain reaction triggered in Corrupted Backup Power III. 12972_ Door malfunctions. 12975_ System corrupted: Energy discharge (-22). Map ----- +----------------------------------------------------+ | ?????????????????????????????????????????# #?????? | | ?????????????????????????????????????????# #?????? | | ?????????????????????????????????????????# #?????? | | ???????????????????????????????????####### ####### | | ???????????????????????????????????# * | | ???????????????????????????????????# | | ????????????????????????????????#### """ | | ????????????????????????????????# """ | | ????????????????????????????????# """ | | ????????????????????????????????# * | | ????????????????????????????????# / | | ??????????????????##########????# /! | | ??????????????????# ###### | | ??????????????????# | | ??????????????????# ###########+########### | | ??????????????????# #?????????# "????????? | | ??????????????????# ! #?????????# """??????? | | ??????????????????# #?????????# """""????? | | ??????????????????# #?????????# """"?????? | | ??????????# ????# = #?????????# ?????? | | ?????????## ??# [! #?????+#### ?????? | | ??????? ###/######??? ####+######## | | ??????? ##### ?? | | ??????? k k ? | | ??????? c ? | | ???????? s c @ ? | | ???????? s s c##### H ?? | | ????????? ss c#?????? ##????####### | | ????????############ k #????????####???????????? | | ???????????????????# #???????????????????????? | | ???????????????????# +???????????????????????? | | ???????????????????# #???????????????????????? | | ???????????????????# #??????????????????????? | | ???????????????????# #?????????????????????? | | ???????????????????# #???????????????????????# | | ???????????????????# #???????????????????????? | | ???????????????????# #???????????????????????? | | ???????????????????# ????????????????????????? | | ???????????????????? ????????????????????????? | | ?????????????????????? ????????????????????????? | | ?????????????????????????????????????????? ### ?? | | ?????????????????????????????????????????? | | ???????????????????????????????????????????? " | | ?????????????????????????????????????????? | | ?????????????????????????????????????????? ## ?? | | ??????????????????????????????????????????????#### | | ????????????????????????????????????????????+ | | ????????????????????????????????????????????# | | ????????????????????????????????????????????# | | ????????????????????????????????????????????# | +----------------------------------------------------+ Best States ------------- Heat Dissipation 59 Energy Generation 21 Energy Capacity 315 Matter Stores 300 Matter Capacity 300 Sight Range 22 Robot Scan Range 16 Terrain Scan Range 20 Terrain Scan Density 210 Corruption Block 15 Armor Coverage 800 Resistance: KI 30 Propulsion Shielding 66 Utility Shielding 66 Evasion (%) 63 Melee Accuracy 8 Core Analysis 6 Armor Integrity Analysis 30 Recoil Reduction 2 Force Boost 20 Offensive Hacking 12 Defensive Hacking 14 Item Schematics ----------------- Combat Drone Bay | -6/Data Miner | Free Lgt. Regenerative Plating | -6/Data Miner | Free Cld. Gravmag System | -6/Data Miner | Free Imp. Matter Compressor | -6/Data Miner | Free Cld. Plasma Rifle | -6/Data Miner | Free Centrium Wheel | -6/Data Miner | Free Lrn. Terrain Scanner | -6/Data Miner | Free HERF Cannon | -6/Data Miner | Free Imp. Shock Absorption System | -6/Data Miner | Free Antigrav Array | -6/Data Miner | Free Robot Schematics ------------------ M-22 Extractor | -6/Data Miner | Free A-15 Conveyor | -6/Data Miner | Free G-50 Soldier | -6/Data Miner | Free D-63 Destroyer | -6/Data Miner | Free L-61 Swordsman | -6/Data Miner | Free Fabricated ------------ Nothing Repaired ---------- Nothing Alien Tech Used ----------------- None Achievements -------------- None Challenges ------------ None Game ------ Seed TransportConceptDetector Manual? 0 Play Time 01:26:13 Cumulative 377.1 hours Start 2025.10.13 @ 23:02:50 End 2025.10.14 @ 00:34:36 Sessions 1 Manual Loads 0 Difficulty Rogue Special Mode None Game No. 494 Rogue 494 Adventurer 0 Explorer 0 Win Type - Total 11 Types 6/0/1/2/1/0/1/0/0/0 Lore% 88 Gallery% 83 Achievement% 70 Wizard Run 0 Options --------- Layout 0 ASCII 0 Keyboard 0 Movement Mouse Keybinds 0 Fullscreen 1 Font 24/Tamsyn Map View 76x50 Zoom Use 0% Tactical HUD 1 Map Filters NONE Filters NONE Steam 1 RUN: fecfe3cc-f718-4f7c-ac83-1d8470a9e33c